Workbook

Sheet E010 IND 1
B1: COMISION COORDINADORA DE INSTITUTOS NACIONALES DE SALUD
B2: Y HOSPITALES DE ALTA ESPECIALIDAD
B3: Coordinación de Proyectos Estratégicos | E3: MATRIZ DE INDICADORES PARA RESULTADOS (MIR) 2016
E4: PP: E010 "FORMACIÓN Y CAPACITACIÓN DE RECURSOS HUMANOS PARA LA SALUD"
E6: EVOLUCIÓN EN EL PERIODO
B8: Clave entidad/unidad: NCA
B10: Entidad/unidad: INSTITUTO NACIONAL DE CARDIOLOGÍA IGNACIO CHÁVEZ
B14: 1 | C14: LINEA BASE INDICADOR | E14: INDICADOR | F14: VARIABLE 1 | G14: VARIABLE 2
C15: AÑO | E15: Tasa de incremento anual de becas de formación de especialistas médicos FÓRMULA: (VARIABLE1 - VARIABLE 2)/ VARIABLE2 X 100 | F15: Becas otorgadas en el año actual por la Secretaría de Salud para formar médicos especialistas | G15: Becas otorgadas en el año anterior por la Secretaría de Salud para formar médicos especialistas
C16: 1/ | D16: 2016 | E16: =IF(G16=0,0,ROUND((F16-G16)/G16*100,1)) -> 5.2 | F16: 7789 | G16: 7401
C17: 2/ | D17: 2009 | E17: =IF(G17=0,0,ROUND((F17-G17)/G17*100,1)) -> 0
D18: 2010 | E18: =IF(G18=0,0,ROUND((F18-G18)/G18*100,1)) -> 0
D19: 2011 | E19: 0
D20: 2012 | E20: 0
D21: 2013 | E21: 0
D22: 2014 | E22: 0
D23: 2015 | E23: 0
D24: 2016 | E24: 0
B26: 1/ | D26: Línea base del indicador registrada en el PASH 2016: año en que empieza a operar el indicador para el programa (CCINSHAE).
B27: 2/ | D27: Línea base del indicador institucional: año en que empieza a operar el indicador para la Institución.
B28: INSTRUCTIVO
B29: I. Llenar los valores de la tabla a partir del año en que la entidad comprometió el indicador (Línea base)
B30: II. Llenar todos los ejercicios fiscales posteriores al año de la línea base hasta el año 2016 con el valor de cierre de cada ejercicio fiscal; en el caso que sea un indicador nuevo registrar el valor programado.
B31: III. Los ejercicios fiscales en que no se comprometío el indicador deberán registrar un valor de cero.
D33: =E14 -> INDICADOR | F33: Breve Explicación del comportamiento del indicador y sus variables en el periodo (desde línea base)
D34: =E15 -> Tasa de incremento anual de becas de formación de especialistas médicosFÓRMULA: (VARIABLE1 - VARIABLE 2)/ VARIABLE2 X 100 | F34: ESTE INDICADOR CORRESPONDE A LA DIRECCIÓN GENERAL DE CALIDAD Y EDUCACIÓN EN SALUD
D49: =F14 -> VARIABLE 1 | F49: =G14 -> VARIABLE 2
D50: =F15 -> Becas otorgadas en el año actual por la Secretaría de Salud para formar médicos especialistas | F50: =G15 -> Becas otorgadas en el año anterior por la Secretaría de Salud para formar médicos especialistas

Sheet E010 IND 2
B1: COMISION COORDINADORA DE INSTITUTOS NACIONALES DE SALUD
B2: Y HOSPITALES DE ALTA ESPECIALIDAD
B3: Coordinación de Proyectos Estratégicos | E3: MATRIZ DE INDICADORES PARA RESULTADOS (MIR) 2016
E4: PP: E010 "FORMACIÓN Y CAPACITACIÓN DE RECURSOS HUMANOS PARA LA SALUD"
E6: EVOLUCIÓN EN EL PERIODO
B8: Clave entidad/unidad: NCA
B10: Entidad/unidad: INSTITUTO NACIONAL DE CARDIOLOGÍA IGNACIO CHÁVEZ
B14: 2 | C14: LINEA BASE INDICADOR | E14: INDICADOR | F14: VARIABLE 1 | G14: VARIABLE 2
C15: AÑO | E15: Porcentaje de plazas de residentes ocupadas respecto a las disponibles. FÓRMULA: VARIABLE1 / VARIABLE2 X 100 | F15: Número de plazas de médicos residentes ocupadas | G15: Número de plazas de médicos residentes disponibles
C16: 1/ | D16: 2016 | E16: =IF(G16=0,0,ROUND((F16)/G16*100,1)) -> 95 | F16: 7401 | G16: 7789
C17: 2/ | D17: 2009 | E17: =IF(G17=0,0,ROUND((F17)/G17*100,1)) -> 0
D18: 2010 | E18: =IF(G18=0,0,ROUND((F18)/G18*100,1)) -> 0
D19: 2011 | E19: 0
D20: 2012 | E20: 0
D21: 2013 | E21: 0
D22: 2014 | E22: 0
D23: 2015 | E23: 0
D24: 2016 | E24: 0
B26: 1/ | D26: Línea base del indicador registrada en el PASH 2016: año en que empieza a operar el indicador para el programa (CCINSHAE).
B27: 2/ | D27: Línea base del indicador institucional: año en que empieza a operar el indicador para la Institución.
B28: INSTRUCTIVO
B29: I. Llenar los valores de la tabla a partir del año en que la entidad comprometió el indicador (Línea base)
B30: II. Llenar todos los ejercicios fiscales posteriores al año de la línea base hasta el año 2016 con el valor de cierre de cada ejercicio fiscal; en el caso que sea un indicador nuevo registrar el valor programado.
B31: III. Los ejercicios fiscales en que no se comprometío el indicador deberán registrar un valor de cero.
D33: =E14 -> INDICADOR | F33: Breve Explicación del comportamiento del indicador y sus variables en el periodo (desde línea base)
D34: =E15 -> Porcentaje de plazas de residentes ocupadas respecto a las disponibles.FÓRMULA: VARIABLE1 / VARIABLE2 X 100 | F34: ESTE INDICADOR CORRESPONDE A LA DIRECCIÓN GENERAL DE CALIDAD Y EDUCACIÓN EN SALUD
D49: =F14 -> VARIABLE 1 | F49: =G14 -> VARIABLE 2
D50: =F15 -> Número de plazas de médicos residentes ocupadas | F50: =G15 -> Número de plazas de médicos residentes disponibles

Sheet E010 IND 3
B1: COMISION COORDINADORA DE INSTITUTOS NACIONALES DE SALUD
B2: Y HOSPITALES DE ALTA ESPECIALIDAD
B3: Coordinación de Proyectos Estratégicos | E3: MATRIZ DE INDICADORES PARA RESULTADOS (MIR) 2016
E4: PP: E010 "FORMACIÓN Y CAPACITACIÓN DE RECURSOS HUMANOS PARA LA SALUD"
E6: EVOLUCIÓN EN EL PERIODO
B8: Clave entidad/unidad: NCA
B10: Entidad/unidad: INSTITUTO NACIONAL DE CARDIOLOGÍA IGNACIO CHÁVEZ
B14: 3 | C14: LINEA BASE INDICADOR | E14: INDICADOR | F14: VARIABLE 1 | G14: VARIABLE 2
C15: AÑO | E15: Eficiencia terminal de médicos especialistas FÓRMULA: VARIABLE1 / VARIABLE2 X 100 | F15: Número de médicos especialistas en formación de la misma cohorte que obtienen constancia de conclusión de estudios de posgrado clínico | G15: Número de médicos especialistas en formación de la misma cohorte inscritos a estudios de posgrado clínico
C16: 1/ | D16: 2009 | E16: =IF(G16=0,0,ROUND(F16/G16*100,1)) -> 75.5 | F16: 2049 | G16: 2715
C17: 2/ | D17: 2009 | E17: =IF(G17=0,0,ROUND((F17)/G17*100,1)) -> 95.5 | F17: 105 | G17: 110
D18: 2010 | E18: =IF(G18=0,0,ROUND((F18)/G18*100,1)) -> 99 | F18: 100 | G18: 101
D19: 2011 | E19: =IF(G19=0,0,ROUND((F19)/G19*100,1)) -> 97.2 | F19: 105 | G19: 108
D20: 2012 | E20: =IF(G20=0,0,ROUND((F20)/G20*100,1)) -> 100 | F20: 112 | G20: 112
D21: 2013 | E21: =IF(G21=0,0,ROUND((F21)/G21*100,1)) -> 99.1 | F21: 107 | G21: 108
D22: 2014 | E22: =IF(G22=0,0,ROUND((F22)/G22*100,1)) -> 99.1 | F22: 111 | G22: 112
D23: 2015 | E23: 97.5 | F23: 116 | G23: 119
D24: 2016 | E24: 97.5 | F24: 116 | G24: 119
B26: 1/ | D26: Línea base del indicador registrada en el PASH 2016: año en que empieza a operar el indicador para el programa (CCINSHAE).
B27: 2/ | D27: Línea base del indicador institucional: año en que empieza a operar el indicador para la Institución.
B28: INSTRUCTIVO
B29: I. Llenar los valores de la tabla a partir del año en que la entidad comprometió el indicador (Línea base)
B30: II. Llenar todos los ejercicios fiscales posteriores al año de la línea base hasta el año 2016 con el valor de cierre de cada ejercicio fiscal; en el caso que sea un indicador nuevo registrar el valor programado.
B31: III. Los ejercicios fiscales en que no se comprometío el indicador deberán registrar un valor de cero.
D33: =E14 -> INDICADOR | F33: Breve Explicación del comportamiento del indicador y sus variables en el periodo (desde línea base)
D34: =E15 -> Eficiencia terminal de médicos especialistas FÓRMULA: VARIABLE1 / VARIABLE2 X 100
D49: =F14 -> VARIABLE 1 | F49: =G14 -> VARIABLE 2
D50: =F15 -> Número de médicos especialistas en formación de la misma cohorte que obtienen constancia de conclusión de estudios de posgrado clínico | F50: =G15 -> Número de médicos especialistas en formación de la misma cohorte inscritos a estudios de posgrado clínico

Sheet E010 IND 4
B1: COMISION COORDINADORA DE INSTITUTOS NACIONALES DE SALUD
B2: Y HOSPITALES DE ALTA ESPECIALIDAD
B3: Coordinación de Proyectos Estratégicos | E3: MATRIZ DE INDICADORES PARA RESULTADOS (MIR) 2016
E4: PP: E010 "FORMACIÓN Y CAPACITACIÓN DE RECURSOS HUMANOS PARA LA SALUD"
E6: EVOLUCIÓN EN EL PERIODO
B8: Clave entidad/unidad: NCA
B10: Entidad/unidad: INSTITUTO NACIONAL DE CARDIOLOGÍA IGNACIO CHÁVEZ
B14: 4 | C14: LINEA BASE INDICADOR | E14: INDICADOR | F14: VARIABLE 1 | G14: VARIABLE 2
C15: AÑO | E15: Eficiencia terminal de posgrado no clínico FÓRMULA: VARIABLE1 / VARIABLE2 X 100 | F15: Número de profesionales en posgrados no clínicos de la misma cohorte con constancia de terminación | G15: Total de profesionales en posgrados no clínicos inscritos en la misma cohorte x 100
C16: 1/ | D16: 2011 | E16: =IF(G16=0,0,ROUND(F16/G16*100,1)) -> 80.9 | F16: 1116 | G16: 1380
C17: 2/ | D17: 2009 | E17: =IF(G17=0,0,ROUND((F17)/G17*100,1)) -> 0
D18: 2010 | E18: =IF(G18=0,0,ROUND((F18)/G18*100,1)) -> 0
D19: 2011 | E19: 95 | F19: 19 | G19: 20
D20: 2012 | E20: 93.3 | F20: 14 | G20: 15
D21: 2013 | E21: 90.5 | F21: 38 | G21: 42
D22: 2014 | E22: 81.3 | F22: 13 | G22: 16
D23: 2015 | E23: 88.9 | F23: 24 | G23: 27
D24: 2016 | E24: 90 | F24: 9 | G24: 10
B26: 1/ | D26: Línea base del indicador registrada en el PASH 2016: año en que empieza a operar el indicador para el programa (CCINSHAE).
B27: 2/ | D27: Línea base del indicador institucional: año en que empieza a operar el indicador para la Institución.
B28: INSTRUCTIVO
B29: I. Llenar los valores de la tabla a partir del año en que la entidad comprometió el indicador (Línea base)
B30: II. Llenar todos los ejercicios fiscales posteriores al año de la línea base hasta el año 2016 con el valor de cierre de cada ejercicio fiscal; en el caso que sea un indicador nuevo registrar el valor programado.
B31: III. Los ejercicios fiscales en que no se comprometío el indicador deberán registrar un valor de cero.
D33: =E14 -> INDICADOR | F33: Breve Explicación del comportamiento del indicador y sus variables en el periodo (desde línea base)
D34: =E15 -> Eficiencia terminal de posgrado no clínicoFÓRMULA: VARIABLE1 / VARIABLE2 X 100
D49: =F14 -> VARIABLE 1 | F49: =G14 -> VARIABLE 2
D50: =F15 -> Número de profesionales en posgrados no clínicos de la misma cohorte con constancia de terminación | F50: =G15 -> Total de profesionales en posgrados no clínicos inscritos en la misma cohorte x 100

Sheet E010 IND 5
B1: COMISION COORDINADORA DE INSTITUTOS NACIONALES DE SALUD
B2: Y HOSPITALES DE ALTA ESPECIALIDAD
B3: Coordinación de Proyectos Estratégicos | E3: MATRIZ DE INDICADORES PARA RESULTADOS (MIR) 2016
E4: PP: E010 "FORMACIÓN Y CAPACITACIÓN DE RECURSOS HUMANOS PARA LA SALUD"
E6: EVOLUCIÓN EN EL PERIODO
B8: Clave entidad/unidad: NCA
B10: Entidad/unidad: INSTITUTO NACIONAL DE CARDIOLOGÍA IGNACIO CHÁVEZ
B14: 5 | C14: LINEA BASE INDICADOR | E14: INDICADOR | F14: VARIABLE 1 | G14: VARIABLE 2
C15: AÑO | E15: Porcentaje de profesionales que concluyeron cursos de educación continua FÓRMULA: VARIABLE1 / VARIABLE2 X 100 | F15: Número de profesionales de la salud que recibieron constancia de conclusión de estudios de educación continua impartida por la institución | G15: Número de profesionales de la salud inscritos a los cursos de educación continua realizados por la institución durante el periodo reportado x 100
C16: 1/ | D16: 2011 | E16: =IF(G16=0,0,ROUND(F16/G16*100,1)) -> 96.6 | F16: 62582 | G16: 64767
C17: 2/ | D17: 2009 | E17: =IF(G17=0,0,ROUND((F17)/G17*100,1)) -> 0
D18: 2010 | E18: =IF(G18=0,0,ROUND((F18)/G18*100,1)) -> 0
D19: 2011 | E19: 96.3 | F19: 2656 | G19: 2759
D20: 2012 | E20: 95.1 | F20: 3524 | G20: 3706
D21: 2013 | E21: 97.2 | F21: 4200 | G21: 4321
D22: 2014 | E22: 98 | F22: 3849 | G22: 3928
D23: 2015 | E23: 96.7 | F23: 3294 | G23: 3405
D24: 2016 | E24: 100 | F24: 5249 | G24: 5249
B26: 1/ | D26: Línea base del indicador registrada en el PASH 2016: año en que empieza a operar el indicador para el programa (CCINSHAE).
B27: 2/ | D27: Línea base del indicador institucional: año en que empieza a operar el indicador para la Institución.
B28: INSTRUCTIVO
B29: I. Llenar los valores de la tabla a partir del año en que la entidad comprometió el indicador (Línea base)
B30: II. Llenar todos los ejercicios fiscales posteriores al año de la línea base hasta el año 2016 con el valor de cierre de cada ejercicio fiscal; en el caso que sea un indicador nuevo registrar el valor programado.
B31: III. Los ejercicios fiscales en que no se comprometío el indicador deberán registrar un valor de cero.
D33: =E14 -> INDICADOR | F33: Breve Explicación del comportamiento del indicador y sus variables en el periodo (desde línea base)
D34: =E15 -> Porcentaje de profesionales que concluyeron cursos de educación continuaFÓRMULA: VARIABLE1 / VARIABLE2 X 100
D49: =F14 -> VARIABLE 1 | F49: =G14 -> VARIABLE 2
D50: =F15 -> Número de profesionales de la salud que recibieron constancia de conclusión de estudios de educación continua impartida por la institución | F50: =G15 -> Número de profesionales de la salud inscritos a los cursos de educación continua realizados por la institución durante el periodo reportado x 100

Sheet E010 IND 6
B1: COMISION COORDINADORA DE INSTITUTOS NACIONALES DE SALUD
B2: Y HOSPITALES DE ALTA ESPECIALIDAD
B3: Coordinación de Proyectos Estratégicos | E3: MATRIZ DE INDICADORES PARA RESULTADOS (MIR) 2016
E4: PP: E010 "FORMACIÓN Y CAPACITACIÓN DE RECURSOS HUMANOS PARA LA SALUD"
E6: EVOLUCIÓN EN EL PERIODO
B8: Clave entidad/unidad: NCA
B10: Entidad/unidad: INSTITUTO NACIONAL DE CARDIOLOGÍA IGNACIO CHÁVEZ
B14: 6 | C14: LINEA BASE INDICADOR | E14: INDICADOR | F14: VARIABLE 1 | G14: VARIABLE 2
C15: AÑO | E15: Porcentaje de cursos de formación con promedio de calificación de percepción de calidad superior a 80 puntos FÓRMULA: VARIABLE1 / VARIABLE2 X 100 | F15: Número de cursos de formación de pogrado impartidos con promedio de calificación de percepción de calidad por parte de los médicos en formación superior a 80 puntos | G15: Total de cursos de formación de posgrado para médicos en formación impartidos en el periodo x 100
C16: 1/ | D16: 2016 | E16: =IF(G16=0,0,ROUND(F16/G16*100,1)) -> 87 | F16: 474 | G16: 545
C17: 2/ | D17: 2009 | E17: =IF(G17=0,0,ROUND((F17)/G17*100,1)) -> 0
D18: 2010 | E18: =IF(G18=0,0,ROUND((F18)/G18*100,1)) -> 0
D19: 2011 | E19: 0
D20: 2012 | E20: 0
D21: 2013 | E21: 0
D22: 2014 | E22: 0
D23: 2015 | E23: 0
D24: 2016 | E24: 100 | F24: 23 | G24: 23
B26: 1/ | D26: Línea base del indicador registrada en el PASH 2016: año en que empieza a operar el indicador para el programa (CCINSHAE).
B27: 2/ | D27: Línea base del indicador institucional: año en que empieza a operar el indicador para la Institución.
B28: INSTRUCTIVO
B29: I. Llenar los valores de la tabla a partir del año en que la entidad comprometió el indicador (Línea base)
B30: II. Llenar todos los ejercicios fiscales posteriores al año de la línea base hasta el año 2016 con el valor de cierre de cada ejercicio fiscal; en el caso que sea un indicador nuevo registrar el valor programado.
B31: III. Los ejercicios fiscales en que no se comprometío el indicador deberán registrar un valor de cero.
D33: =E14 -> INDICADOR | F33: Breve Explicación del comportamiento del indicador y sus variables en el periodo (desde línea base)
D34: =E15 -> Porcentaje de cursos de formación con promedio de calificación de percepción de calidad superior a 80 puntosFÓRMULA: VARIABLE1 / VARIABLE2 X 100
D49: =F14 -> VARIABLE 1 | F49: =G14 -> VARIABLE 2
D50: =F15 -> Número de cursos de formación de pogrado impartidos con promedio de calificación de percepción de calidad por parte de los médicos en formación superior a 80 puntos | F50: =G15 -> Total de cursos de formación de posgrado para médicos en formación impartidos en el periodo x 100

Sheet E010 IND 7
B1: COMISION COORDINADORA DE INSTITUTOS NACIONALES DE SALUD
B2: Y HOSPITALES DE ALTA ESPECIALIDAD
B3: Coordinación de Proyectos Estratégicos | E3: MATRIZ DE INDICADORES PARA RESULTADOS (MIR) 2016
E4: PP: E010 "FORMACIÓN Y CAPACITACIÓN DE RECURSOS HUMANOS PARA LA SALUD"
E6: EVOLUCIÓN EN EL PERIODO
B8: Clave entidad/unidad: NCA
B10: Entidad/unidad: INSTITUTO NACIONAL DE CARDIOLOGÍA IGNACIO CHÁVEZ
B14: 7 | C14: LINEA BASE INDICADOR | E14: INDICADOR | F14: VARIABLE 1 | G14: VARIABLE 2
C15: AÑO | E15: Porcentaje de cursos de posgrado no clínico con promedio de calificación de percepción de calidad superior a 80 puntos FÓRMULA: VARIABLE1 / VARIABLE2 X 100 | F15: Número de cursos de formación en posgrado no clínico impartidos con promedio de calificación de percepción de calidad superior a 80 puntos | G15: Total de cursos de formación de posgrado no clínico impartidos en el periodo X 100
C16: 1/ | D16: 2016 | E16: =IF(G16=0,0,ROUND(F16/G16*100,1)) -> 82.3 | F16: 326 | G16: 396
C17: 2/ | D17: 2009 | E17: =IF(G17=0,0,ROUND(F17/G17*100,1)) -> 0
D18: 2010 | E18: =IF(G18=0,0,ROUND(F18/G18*100,1)) -> 0
D19: 2011 | E19: 0
D20: 2012 | E20: 0
D21: 2013 | E21: 0
D22: 2014 | E22: 0
D23: 2015 | E23: 0
D24: 2016 | E24: 100 | F24: 2 | G24: 2
B26: 1/ | D26: Línea base del indicador registrada en el PASH 2016: año en que empieza a operar el indicador para el programa (CCINSHAE).
B27: 2/ | D27: Línea base del indicador institucional: año en que empieza a operar el indicador para la Institución.
B28: INSTRUCTIVO
B29: I. Llenar los valores de la tabla a partir del año en que la entidad comprometió el indicador (Línea base)
B30: II. Llenar todos los ejercicios fiscales posteriores al año de la línea base hasta el año 2016 con el valor de cierre de cada ejercicio fiscal; en el caso que sea un indicador nuevo registrar el valor programado.
B31: III. Los ejercicios fiscales en que no se comprometío el indicador deberán registrar un valor de cero.
D33: =E14 -> INDICADOR | F33: Breve Explicación del comportamiento del indicador y sus variables en el periodo (desde línea base)
D34: =E15 -> Porcentaje de cursos de posgrado no clínico con promedio de calificación de percepción de calidad superior a 80 puntosFÓRMULA: VARIABLE1 / VARIABLE2 X 100
D49: =F14 -> VARIABLE 1 | F49: =G14 -> VARIABLE 2
D50: =F15 -> Número de cursos de formación en posgrado no clínico impartidos con promedio de calificación de percepción de calidad superior a 80 puntos | F50: =G15 -> Total de cursos de formación de posgrado no clínico impartidos en el periodo X 100

Sheet E010 IND 8
B1: COMISION COORDINADORA DE INSTITUTOS NACIONALES DE SALUD
B2: Y HOSPITALES DE ALTA ESPECIALIDAD
B3: Coordinación de Proyectos Estratégicos | E3: MATRIZ DE INDICADORES PARA RESULTADOS (MIR) 2016
E4: PP: E010 "FORMACIÓN Y CAPACITACIÓN DE RECURSOS HUMANOS PARA LA SALUD"
E6: EVOLUCIÓN EN EL PERIODO
B8: Clave entidad/unidad: NCA
B10: Entidad/unidad: INSTITUTO NACIONAL DE CARDIOLOGÍA IGNACIO CHÁVEZ
B14: 8 | C14: LINEA BASE INDICADOR | E14: INDICADOR | F14: VARIABLE 1 | G14: VARIABLE 2
C15: AÑO | E15: Eficacia en la impartición de cursos de educación continua FÓRMULA: VARIABLE1 / VARIABLE2 X 100 | F15: Número de cursos de educación continua impartidos por la institución en el periodo | G15: Total de cursos de educación continua programados por la institución en el mismo periodo X 100
C16: 1/ | D16: 2011 | E16: =IF(G16=0,0,ROUND(F16/G16*100,1)) -> 95.1 | F16: 1258 | G16: 1323
C17: 2/ | D17: 2009 | E17: =IF(G17=0,0,ROUND(F17/G17*100,1)) -> 0
D18: 2010 | E18: =IF(G18=0,0,ROUND(F18/G18*100,1)) -> 0
D19: 2011 | E19: 105 | F19: 63 | G19: 60
D20: 2012 | E20: 120 | F20: 72 | G20: 60
D21: 2013 | E21: 121.4 | F21: 85 | G21: 70
D22: 2014 | E22: 79.7 | F22: 51 | G22: 64
D23: 2015 | E23: 78.8 | F23: 52 | G23: 66
D24: 2016 | E24: 118.9 | F24: 44 | G24: 37
B26: 1/ | D26: Línea base del indicador registrada en el PASH 2016: año en que empieza a operar el indicador para el programa (CCINSHAE).
B27: 2/ | D27: Línea base del indicador institucional: año en que empieza a operar el indicador para la Institución.
B28: INSTRUCTIVO
B29: I. Llenar los valores de la tabla a partir del año en que la entidad comprometió el indicador (Línea base)
B30: II. Llenar todos los ejercicios fiscales posteriores al año de la línea base hasta el año 2016 con el valor de cierre de cada ejercicio fiscal; en el caso que sea un indicador nuevo registrar el valor programado.
B31: III. Los ejercicios fiscales en que no se comprometío el indicador deberán registrar un valor de cero.
D33: =E14 -> INDICADOR | F33: Breve Explicación del comportamiento del indicador y sus variables en el periodo (desde línea base)
D34: =E15 -> Eficacia en la impartición de cursos de educación continua FÓRMULA: VARIABLE1 / VARIABLE2 X 100
D49: =F14 -> VARIABLE 1 | F49: =G14 -> VARIABLE 2
D50: =F15 -> Número de cursos de educación continua impartidos por la institución en el periodo | F50: =G15 -> Total de cursos de educación continua programados por la institución en el mismo periodo X 100

Sheet E010 IND 9
B1: COMISION COORDINADORA DE INSTITUTOS NACIONALES DE SALUD
B2: Y HOSPITALES DE ALTA ESPECIALIDAD
B3: Coordinación de Proyectos Estratégicos | E3: MATRIZ DE INDICADORES PARA RESULTADOS (MIR) 2016
E4: PP: E010 "FORMACIÓN Y CAPACITACIÓN DE RECURSOS HUMANOS PARA LA SALUD"
E6: EVOLUCIÓN EN EL PERIODO
B8: Clave entidad/unidad: NCA
B10: Entidad/unidad: INSTITUTO NACIONAL DE CARDIOLOGÍA IGNACIO CHÁVEZ
B14: 9 | C14: LINEA BASE INDICADOR | E14: INDICADOR | F14: VARIABLE 1 | G14: VARIABLE 2
C15: AÑO | E15: Porcentaje de participantes externos en los cursos de educación continua FÓRMULA: VARIABLE1 / VARIABLE2 X 100 | F15: Número de participantes externos en los cursos de educación continua impartidos en el periodo | G15: Total de participantes en los cursos de educación continua impartidos en el periodo x 100
C16: 1/ | D16: 2016 | E16: =IF(G16=0,0,ROUND(F16/G16*100,1)) -> 62 | F16: 42651 | G16: 68765
C17: 2/ | D17: 2009 | E17: =IF(G17=0,0,ROUND(F17/G17*100,1)) -> 0
D18: 2010 | E18: =IF(G18=0,0,ROUND(F18/G18*100,1)) -> 0
D19: 2011 | E19: 0
D20: 2012 | E20: 0
D21: 2013 | E21: 0
D22: 2014 | E22: 0
D23: 2015 | E23: 0
D24: 2016 | E24: 62 | F24: 3257 | G24: 5249
B26: 1/ | D26: Línea base del indicador registrada en el PASH 2016: año en que empieza a operar el indicador para el programa (CCINSHAE).
B27: 2/ | D27: Línea base del indicador institucional: año en que empieza a operar el indicador para la Institución.
B28: INSTRUCTIVO
B29: I. Llenar los valores de la tabla a partir del año en que la entidad comprometió el indicador (Línea base)
B30: II. Llenar todos los ejercicios fiscales posteriores al año de la línea base hasta el año 2016 con el valor de cierre de cada ejercicio fiscal; en el caso que sea un indicador nuevo registrar el valor programado.
B31: III. Los ejercicios fiscales en que no se comprometío el indicador deberán registrar un valor de cero.
D33: =E14 -> INDICADOR | F33: Breve Explicación del comportamiento del indicador y sus variables en el periodo (desde línea base)
D34: =E15 -> Porcentaje de participantes externos en los cursos de educación continuaFÓRMULA: VARIABLE1 / VARIABLE2 X 100
D49: =F14 -> VARIABLE 1 | F49: =G14 -> VARIABLE 2
D50: =F15 -> Número de participantes externos en los cursos de educación continua impartidos en el periodo | F50: =G15 -> Total de participantes en los cursos de educación continua impartidos en el periodo x 100

Sheet E010 IND 10
B1: COMISION COORDINADORA DE INSTITUTOS NACIONALES DE SALUD
B2: Y HOSPITALES DE ALTA ESPECIALIDAD
B3: Coordinación de Proyectos Estratégicos | E3: MATRIZ DE INDICADORES PARA RESULTADOS (MIR) 2016
E4: PP: E010 "FORMACIÓN Y CAPACITACIÓN DE RECURSOS HUMANOS PARA LA SALUD"
E6: EVOLUCIÓN EN EL PERIODO
B8: Clave entidad/unidad: NCA
B10: Entidad/unidad: INSTITUTO NACIONAL DE CARDIOLOGÍA IGNACIO CHÁVEZ
B14: 10 | C14: LINEA BASE INDICADOR | E14: INDICADOR | F14: VARIABLE 1 | G14: VARIABLE 2
C15: AÑO | E15: Percepción sobre la calidad de la educación continua FÓRMULA: VARIABLE1 / VARIABLE2 | F15: Sumatoria de la calificación manifestada por los profesionales de la salud que participan en cursos de educación continua (que concluyen en el periodo) encuestados respecto a la calidad percibida de los cursos recibidos | G15: Total de profesionales de la salud que participan en cursos de educación continua (que concluyen en el periodo) encuestados
C16: 1/ | D16: 2012 | E16: =IF(G16=0,0,ROUND(F16/G16*1,1)) -> 8.7 | F16: 244461 | G16: 28111
C17: 2/ | D17: 2009 | E17: =IF(G17=0,0,ROUND(F17/G17*1,1)) -> 0
D18: 2010 | E18: =IF(G18=0,0,ROUND(F18/G18*1,1)) -> 0
D19: 2011 | E19: 0
D20: 2012 | E20: 9.1 | F20: 5536 | G20: 606
D21: 2013 | E21: 9.6 | F21: 9615 | G21: 1000
D22: 2014 | E22: 9.5 | F22: 8126 | G22: 856
D23: 2015 | E23: 9.4 | F23: 8535 | G23: 905
D24: 2016 | E24: 9.6 | F24: 9171 | G24: 951
B26: 1/ | D26: Línea base del indicador registrada en el PASH 2016: año en que empieza a operar el indicador para el programa (CCINSHAE).
B27: 2/ | D27: Línea base del indicador institucional: año en que empieza a operar el indicador para la Institución.
B28: INSTRUCTIVO
B29: I. Llenar los valores de la tabla a partir del año en que la entidad comprometió el indicador (Línea base)
B30: II. Llenar todos los ejercicios fiscales posteriores al año de la línea base hasta el año 2016 con el valor de cierre de cada ejercicio fiscal; en el caso que sea un indicador nuevo registrar el valor programado.
B31: III. Los ejercicios fiscales en que no se comprometío el indicador deberán registrar un valor de cero.
D33: =E14 -> INDICADOR | F33: Breve Explicación del comportamiento del indicador y sus variables en el periodo (desde línea base)
D34: =E15 -> Percepción sobre la calidad de la educación continua FÓRMULA: VARIABLE1 / VARIABLE2
D49: =F14 -> VARIABLE 1 | F49: =G14 -> VARIABLE 2
D50: =F15 -> Sumatoria de la calificación manifestada por los profesionales de la salud que participan en cursos de educación continua (que concluyen en el periodo) encuestados respecto a la calidad percibida de los cursos recibidos | F50: =G15 -> Total de profesionales de la salud que participan en cursos de educación continua (que concluyen en el periodo) encuestados

Sheet E010 IND 11
B1: COMISION COORDINADORA DE INSTITUTOS NACIONALES DE SALUD
B2: Y HOSPITALES DE ALTA ESPECIALIDAD
B3: Coordinación de Proyectos Estratégicos | E3: MATRIZ DE INDICADORES PARA RESULTADOS (MIR) 2016
E4: PP: E010 "FORMACIÓN Y CAPACITACIÓN DE RECURSOS HUMANOS PARA LA SALUD"
E6: EVOLUCIÓN EN EL PERIODO
B8: Clave entidad/unidad: NCA
B10: Entidad/unidad: INSTITUTO NACIONAL DE CARDIOLOGÍA IGNACIO CHÁVEZ
B14: 11 | C14: LINEA BASE INDICADOR | E14: INDICADOR | F14: VARIABLE 1 | G14: VARIABLE 2
C15: AÑO | E15: Porcentaje de instituciones con programas de seguimiento de egresados (Posgrados clínicos y no clínicos) FÓRMULA: VARIABLE1 / VARIABLE2 X 100 | F15: Número de instituciones que imparten estudios de posgrado clínico y no clínico con seguimiento de egresados | G15: Total de instituciones que imparten estudios de posgrado x 100
C16: 1/ | D16: 2016 | E16: =IF(G16=0,0,ROUND(F16/G16*100,1)) -> 59.1 | F16: 13 | G16: 22
C17: 2/ | D17: 2009 | E17: =IF(G17=0,0,ROUND(F17/G17*100,1)) -> 0
D18: 2010 | E18: =IF(G18=0,0,ROUND(F18/G18*100,1)) -> 0
D19: 2011 | E19: 0
D20: 2012 | E20: 0
D21: 2013 | E21: 0
D22: 2014 | E22: 0
D23: 2015 | E23: 0
D24: 2016 | E24: 0
B26: 1/ | D26: Línea base del indicador registrada en el PASH 2016: año en que empieza a operar el indicador para el programa (CCINSHAE).
B27: 2/ | D27: Línea base del indicador institucional: año en que empieza a operar el indicador para la Institución.
B28: INSTRUCTIVO
B29: I. Llenar los valores de la tabla a partir del año en que la entidad comprometió el indicador (Línea base)
B30: II. Llenar todos los ejercicios fiscales posteriores al año de la línea base hasta el año 2016 con el valor de cierre de cada ejercicio fiscal; en el caso que sea un indicador nuevo registrar el valor programado.
B31: III. Los ejercicios fiscales en que no se comprometío el indicador deberán registrar un valor de cero.
D33: =E14 -> INDICADOR | F33: Breve Explicación del comportamiento del indicador y sus variables en el periodo (desde línea base)
D34: =E15 -> Porcentaje de instituciones con programas de seguimiento de egresados (Posgrados clínicos y no clínicos)FÓRMULA: VARIABLE1 / VARIABLE2 X 100 | F34: ESTE INDICADOR CORRESPONDE A LA DIRECCIÓN GENERAL DE CALIDAD Y EDUCACIÓN EN SALUD
D49: =F14 -> VARIABLE 1 | F49: =G14 -> VARIABLE 2
D50: =F15 -> Número de instituciones que imparten estudios de posgrado clínico y no clínico con seguimiento de egresados | F50: =G15 -> Total de instituciones que imparten estudios de posgrado x 100

Sheet E010 IND 12
B1: COMISION COORDINADORA DE INSTITUTOS NACIONALES DE SALUD
B2: Y HOSPITALES DE ALTA ESPECIALIDAD
B3: Coordinación de Proyectos Estratégicos | E3: MATRIZ DE INDICADORES PARA RESULTADOS (MIR) 2016
E4: PP: E010 "FORMACIÓN Y CAPACITACIÓN DE RECURSOS HUMANOS PARA LA SALUD"
E6: EVOLUCIÓN EN EL PERIODO
B8: Clave entidad/unidad: NCA
B10: Entidad/unidad: INSTITUTO NACIONAL DE CARDIOLOGÍA IGNACIO CHÁVEZ
B14: 12 | C14: LINEA BASE INDICADOR | E14: INDICADOR | F14: VARIABLE 1 | G14: VARIABLE 2
C15: AÑO | E15: Porcentaje de cobertura de matrícula requerida FÓRMULA: VARIABLE1 / VARIABLE2 X 100 | F15: Número de espacios educativos de posgrado cubiertos (becas o matricula) | G15: Número de espacios educativos de posgrado requeridos de acuerdo a las necesidades institucionales x 100
C16: 1/ | D16: 2016 | E16: =IF(G16=0,0,ROUND(F16/G16*100,1)) -> 96.4 | F16: 4533 | G16: 4700
C17: 2/ | D17: 2009 | E17: =IF(G17=0,0,ROUND(F17/G17*100,1)) -> 0
D18: 2010 | E18: =IF(G18=0,0,ROUND(F18/G18*100,1)) -> 0
D19: 2011 | E19: 0
D20: 2012 | E20: 0
D21: 2013 | E21: 0
D22: 2014 | E22: 0
D23: 2015 | E23: 0
D24: 2016 | E24: 97 | F24: 191 | G24: 197
B26: 1/ | D26: Línea base del indicador registrada en el PASH 2016: año en que empieza a operar el indicador para el programa (CCINSHAE).
B27: 2/ | D27: Línea base del indicador institucional: año en que empieza a operar el indicador para la Institución.
B28: INSTRUCTIVO
B29: I. Llenar los valores de la tabla a partir del año en que la entidad comprometió el indicador (Línea base)
B30: II. Llenar todos los ejercicios fiscales posteriores al año de la línea base hasta el año 2016 con el valor de cierre de cada ejercicio fiscal; en el caso que sea un indicador nuevo registrar el valor programado.
B31: III. Los ejercicios fiscales en que no se comprometío el indicador deberán registrar un valor de cero.
D33: =E14 -> INDICADOR | F33: Breve Explicación del comportamiento del indicador y sus variables en el periodo (desde línea base)
D34: =E15 -> Porcentaje de cobertura de matrícula requeridaFÓRMULA: VARIABLE1 / VARIABLE2 X 100
D49: =F14 -> VARIABLE 1 | F49: =G14 -> VARIABLE 2
D50: =F15 -> Número de espacios educativos de posgrado cubiertos (becas o matricula) | F50: =G15 -> Número de espacios educativos de posgrado requeridos de acuerdo a las necesidades institucionales x 100

Sheet E010 IND 13
B1: COMISION COORDINADORA DE INSTITUTOS NACIONALES DE SALUD
B2: Y HOSPITALES DE ALTA ESPECIALIDAD
B3: Coordinación de Proyectos Estratégicos | E3: MATRIZ DE INDICADORES PARA RESULTADOS (MIR) 2016
E4: PP: E010 "FORMACIÓN Y CAPACITACIÓN DE RECURSOS HUMANOS PARA LA SALUD"
E6: EVOLUCIÓN EN EL PERIODO
B8: Clave entidad/unidad: NCA
B10: Entidad/unidad: INSTITUTO NACIONAL DE CARDIOLOGÍA IGNACIO CHÁVEZ
B14: 13 | C14: LINEA BASE INDICADOR | E14: INDICADOR | F14: VARIABLE 1 | G14: VARIABLE 2
C15: AÑO | E15: Porcentaje de postulantes aceptados FÓRMULA: VARIABLE1 / VARIABLE2 X 100 | F15: Número de candidatos seleccionados por la institución para realizar estudios de posgrado | G15: Total de aspirantes que se presentaron a la institución para realizar estudios de posgrado x 100
C16: 1/ | D16: 2016 | E16: =IF(G16=0,0,ROUND(F16/G16*100,1)) -> 50 | F16: 2646 | G16: 5288
C17: 2/ | D17: 2009 | E17: =IF(G17=0,0,ROUND(F17/G17*100,1)) -> 0
D18: 2010 | E18: =IF(G18=0,0,ROUND(F18/G18*100,1)) -> 0
D19: 2011 | E19: 0
D20: 2012 | E20: 0
D21: 2013 | E21: 0
D22: 2014 | E22: 0
D23: 2015 | E23: 0
D24: 2016 | E24: 37 | F24: 137 | G24: 370
B26: 1/ | D26: Línea base del indicador registrada en el PASH 2016: año en que empieza a operar el indicador para el programa (CCINSHAE).
B27: 2/ | D27: Línea base del indicador institucional: año en que empieza a operar el indicador para la Institución.
B28: INSTRUCTIVO
B29: I. Llenar los valores de la tabla a partir del año en que la entidad comprometió el indicador (Línea base)
B30: II. Llenar todos los ejercicios fiscales posteriores al año de la línea base hasta el año 2016 con el valor de cierre de cada ejercicio fiscal; en el caso que sea un indicador nuevo registrar el valor programado.
B31: III. Los ejercicios fiscales en que no se comprometío el indicador deberán registrar un valor de cero.
D33: =E14 -> INDICADOR | F33: Breve Explicación del comportamiento del indicador y sus variables en el periodo (desde línea base)
D34: =E15 -> Porcentaje de postulantes aceptadosFÓRMULA: VARIABLE1 / VARIABLE2 X 100
D49: =F14 -> VARIABLE 1 | F49: =G14 -> VARIABLE 2
D50: =F15 -> Número de candidatos seleccionados por la institución para realizar estudios de posgrado | F50: =G15 -> Total de aspirantes que se presentaron a la institución para realizar estudios de posgrado x 100

Sheet E010 IND 14
B1: COMISION COORDINADORA DE INSTITUTOS NACIONALES DE SALUD
B2: Y HOSPITALES DE ALTA ESPECIALIDAD
B3: Coordinación de Proyectos Estratégicos | E3: MATRIZ DE INDICADORES PARA RESULTADOS (MIR) 2016
E4: PP: E010 "FORMACIÓN Y CAPACITACIÓN DE RECURSOS HUMANOS PARA LA SALUD"
E6: EVOLUCIÓN EN EL PERIODO
B8: Clave entidad/unidad: NCA
B10: Entidad/unidad: INSTITUTO NACIONAL DE CARDIOLOGÍA IGNACIO CHÁVEZ
B14: 14 | C14: LINEA BASE INDICADOR | E14: INDICADOR | F14: VARIABLE 1 | G14: VARIABLE 2
C15: AÑO | E15: Eficacia en la captación de participantes a cursos de educación continua FÓRMULA: VARIABLE1 / VARIABLE2 X 100 | F15: Número de profesionales de la salud efectivamente inscritos a los cursos de educación continua realizados por la institución durante el periodo reportado | G15: Número de profesionales de la salud que se proyectó asistirían a los cursos de educación continua que se realizaron durante el periodo reportado X 100
C16: 1/ | D16: 2012 | E16: =IF(G16=0,0,ROUND(F16/G16*100,1)) -> 98.7 | F16: 102053 | G16: 103424
C17: 2/ | D17: 2009 | E17: =IF(G17=0,0,ROUND(F17/G17*100,1)) -> 0
D18: 2010 | E18: =IF(G18=0,0,ROUND(F18/G18*100,1)) -> 0
D19: 2011 | E19: 0
D20: 2012 | E20: 126.7 | F20: 3706 | G20: 2925
D21: 2013 | E21: 120 | F21: 4321 | G21: 3600
D22: 2014 | E22: 109.1 | F22: 3928 | G22: 3600
D23: 2015 | E23: 94.6 | F23: 3405 | G23: 3600
D24: 2016 | E24: 143.2 | F24: 5249 | G24: 3666
B26: 1/ | D26: Línea base del indicador registrada en el PASH 2016: año en que empieza a operar el indicador para el programa (CCINSHAE).
B27: 2/ | D27: Línea base del indicador institucional: año en que empieza a operar el indicador para la Institución.
B28: INSTRUCTIVO
B29: I. Llenar los valores de la tabla a partir del año en que la entidad comprometió el indicador (Línea base)
B30: II. Llenar todos los ejercicios fiscales posteriores al año de la línea base hasta el año 2016 con el valor de cierre de cada ejercicio fiscal; en el caso que sea un indicador nuevo registrar el valor programado.
B31: III. Los ejercicios fiscales en que no se comprometío el indicador deberán registrar un valor de cero.
D33: =E14 -> INDICADOR | F33: Breve Explicación del comportamiento del indicador y sus variables en el periodo (desde línea base)
D34: =E15 -> Eficacia en la captación de participantes a cursos de educación continuaFÓRMULA: VARIABLE1 / VARIABLE2 X 100
D49: =F14 -> VARIABLE 1 | F49: =G14 -> VARIABLE 2
D50: =F15 -> Número de profesionales de la salud efectivamente inscritos a los cursos de educación continua realizados por la institución durante el periodo reportado | F50: =G15 -> Número de profesionales de la salud que se proyectó asistirían a los cursos de educación continua que se realizaron durante el periodo reportado X 100
